fUST/lending_fUST_20250527
["ID","MTS","AMOUNT","RATE_DAILY","PERIOD"]
[362535253,1748355046496,-430.0,0.00019178,2]
[362535255,1748355046505,-430.0,0.00019178,2]
[362535257,1748355046515,-430.0,0.00019178,2]
[362535259,1748355046525,-430.0,0.00019178,2]
[362535261,1748355046534,-430.0,0.00019178,2]
[362535263,1748355046544,-59.93070341,0.00019178,2]
[362536041,1748355056010,420.845388,0.00013699,2]
[362539000,1748355233904,535.0,0.00021918,30]
[362539130,1748355619296,5000.0,0.0001611,2]
[362539131,1748355635316,4742.24717827,0.0001611,2]
[362539685,1748355799264,19091.35283835,0.00016091,2]
[362539686,1748355799293,10888.59403756,0.00016091,2]
[362539691,1748355896830,-500.0,0.0001605,2]
[362539692,1748355896854,-500.0,0.0001605,2]
[362539693,1748355896878,-500.0,0.0001605,2]
[362539694,1748355896900,-500.0,0.0001605,2]
[362539695,1748355896923,-500.0,0.0001605,2]
[362539696,1748355896946,-500.0,0.0001605,2]
[362539697,1748355896969,-500.0,0.0001605,2]
[362539698,1748355896997,-500.0,0.0001605,2]
[362539699,1748355897019,-493.45446005,0.0001605,2]
[362539700,1748355897042,-500.0,0.0001605,2]
[362539701,1748355897064,-500.0,0.0001605,2]
[362539702,1748355897087,-500.0,0.0001605,2]
[362539703,1748355897109,-500.0,0.0001605,2]
[362539704,1748355897134,-500.0,0.0001605,2]
[362539705,1748355897161,-388.53379915,0.0001605,2]
[362539706,1748355897184,-500.0,0.0001605,2]
[362539707,1748355897208,-231.71298726,0.0001605,2]
[362539708,1748355897231,-500.0,0.0001605,2]
[362539709,1748355897256,-500.0,0.0001605,2]
[362539710,1748355897281,-500.0,0.0001605,2]
[362539711,1748355897303,-500.0,0.0001605,2]
[362539712,1748355897326,-500.0,0.0001605,2]
[362539713,1748355897348,-221.36387853,0.0001605,2]
[362539714,1748355897370,-300.0,0.0001605,2]
[362539715,1748355897392,-1166.93487501,0.00016051,2]
[362539720,1748355955524,4222.4971066,0.00024657,120]
[362539728,1748356068471,318.526698,0.0001508,2]
[362539730,1748356083797,156.29277819,0.00015989,2]
[362539731,1748356118081,575.68733056,0.000149,2]
[362539735,1748356161349,-300.0,0.00016049,2]
[362539736,1748356161371,-300.0,0.00016049,2]
[362539737,1748356161395,-500.0,0.0001605,2]
[362539738,1748356161416,-300.0,0.0001605,2]
[362539739,1748356161437,-300.0,0.0001605,2]
[362539740,1748356161458,-300.0,0.0001605,2]
[362539741,1748356161479,-1200.0,0.0001605,2]
[362539742,1748356161502,-3292.68358653,0.00016051,2]
[362539743,1748356164285,-20440.38153846,0.00016051,2]
[362539744,1748356164311,-1933.41213715,0.00016088,2]
[362539745,1748356164336,-1933.41213715,0.00016088,2]
[362539746,1748356164360,-1933.41213715,0.00016088,2]
[362539747,1748356164383,-1933.41213715,0.00016088,2]
[362539748,1748356164405,-500.0,0.00016088,2]
[362539749,1748356164429,-1933.41213715,0.00016088,2]
[362539750,1748356164453,-500.0,0.00016088,2]
[362539751,1748356164478,-1933.41213715,0.00016088,2]
[362539752,1748356164501,-500.0,0.00016088,2]
[362539753,1748356164525,-1933.41213715,0.00016088,2]
[362539754,1748356164549,-500.0,0.00016088,2]
[362539755,1748356164572,-500.0,0.00016088,2]
[362539756,1748356164595,-500.0,0.00016088,2]
[362539757,1748356164620,-1933.41213715,0.00016088,2]
[362539758,1748356164645,-1933.41213715,0.00016088,2]
[362539759,1748356164668,-252.31576763,0.00016088,2]
[362539760,1748356164694,-1933.41213715,0.00016088,2]
[362539761,1748356164718,-1933.41213715,0.00016088,2]
[362539762,1748356164741,-500.0,0.00016088,2]
[362539763,1748356164765,-1933.41213715,0.00016088,2]
[362539764,1748356164787,-437.159392,0.00016088,2]
[362539765,1748356164812,-1933.41213715,0.00016088,2]
[362539766,1748356164837,-1933.41213715,0.00016088,2]
[362539767,1748356164865,-1933.41213715,0.00016088,2]
[362539768,1748356164890,-1933.41213715,0.00016088,2]
[362539769,1748356164914,-2049.41686538,0.00016088,2]
[362539770,1748356164938,-2049.41686538,0.00016088,2]
[362539771,1748356164962,-2049.41686538,0.00016088,2]
[362539772,1748356164987,-2049.41686538,0.00016088,2]
[362539773,1748356165012,-2049.41686538,0.00016088,2]
[362539774,1748356165038,-2049.41686538,0.00016088,2]
[362539775,1748356165063,-2049.41686538,0.00016088,2]
[362539776,1748356165088,-2049.41686538,0.00016088,2]
[362539777,1748356165114,-2049.41686538,0.00016088,2]
[362539778,1748356165139,-1936.15961756,0.00016088,2]
[362539779,1748356165163,-1936.15961756,0.00016088,2]
[362539780,1748356165187,-1936.15961756,0.00016088,2]
[362539781,1748356165214,-1936.15961756,0.00016088,2]
[362539782,1748356165238,-1936.15961756,0.00016088,2]
[362539783,1748356165266,-1936.15961756,0.00016088,2]
[362539784,1748356165289,-9062.91323378,0.0001609,2]
[362539787,1748356165320,-20220.25917539,0.00016091,2]
[362539789,1748356165350,-12302.27661726,0.000161,2]
[362539791,1748356165374,-10000.0,0.00016151,2]
[362539793,1748356165397,-500.0,0.00016438,2]
[362539795,1748356165424,-500.0,0.00016438,2]
[362539797,1748356165450,-222.83708235,0.00016438,2]
[362539799,1748356165473,-376.985174,0.00016438,2]
[362539801,1748356165497,-360.45606598,0.00016438,2]
[362539803,1748356165523,-500.0,0.00016438,2]
[362539805,1748356165548,-500.0,0.00016438,2]
[362539807,1748356165575,-500.0,0.00016438,2]
[362539810,1748356165601,-262.4422504,0.00016438,2]
[362539812,1748356165626,-500.0,0.00016438,2]
[362539814,1748356165648,-8162.54746335,0.00017,2]
[362539816,1748356165670,-3738.63067224,0.00017059,2]
[362540093,1748356237877,-645.69900646,0.00017059,2]
[362540095,1748356237888,-2484.7412521,0.000171,2]
[362540096,1748356237899,-156.29277812,0.00017262,2]
[362540098,1748356237909,-392.0,0.00017546,2]
[362540099,1748356237926,-259.0334014,0.00017798,2]
[362540100,1748356237937,-156.29277812,0.00018535,2]
[362540102,1748356237948,-180.0,0.00018799,2]
[362540104,1748356237963,-300.0,0.00018799,2]
[362540106,1748356237974,-599.27983858,0.000188,2]
[362540109,1748356237984,-599.27983845,0.000188,2]
[362540112,1748356237995,-599.27983845,0.000188,2]
[362540113,1748356238004,-599.27983845,0.000188,2]
[362540114,1748356238015,-599.27983845,0.00018866,2]
[362540115,1748356238026,-544.28083445,0.000189,2]
[362540117,1748356238036,-599.27983845,0.00019107,2]
[362540119,1748356238046,-366.58091027,0.00019128,2]
[362540121,1748356238057,-349.1890241,0.00019177,2]
[362540123,1748356238069,-150.8109759,0.00019177,2]
[362540125,1748356238079,-500.0,0.00019177,2]
[362540127,1748356238089,-500.0,0.00019177,2]
[362540130,1748356238099,-500.0,0.00019177,2]
[362540131,1748356238109,-500.0,0.00019177,2]
[362540134,1748356238119,-500.0,0.00019177,2]
[362540136,1748356238128,-500.0,0.00019177,2]
[362540138,1748356238137,-500.0,0.00019177,2]
[362540140,1748356238147,-320.94819991,0.00019177,2]
[362540142,1748356238156,-251.38247227,0.00019177,2]
[362540144,1748356238173,-247.9681097,0.00019177,2]
[362540146,1748356238183,-500.0,0.00019177,2]
[362540148,1748356238193,-500.0,0.00019177,2]
[362540150,1748356238202,-500.0,0.00019177,2]
[362540152,1748356238211,-450.0,0.00019177,2]
[362540154,1748356238221,-500.0,0.00019177,2]
[362540156,1748356238230,-500.0,0.00019177,2]
[362540158,1748356238240,-500.0,0.00019177,2]
[362540160,1748356238251,-156.0115744,0.00019177,2]
[362540162,1748356238264,-430.54931385,0.00019178,2]
[362540164,1748356238273,-430.0,0.00019178,2]
[362540166,1748356238284,-430.0,0.00019178,2]
[362540167,1748356238295,-430.0,0.00019178,2]
[362540168,1748356238304,-430.0,0.00019178,2]
[362540169,1748356238314,-430.0,0.00019178,2]
[362540170,1748356238324,-400.0,0.00019178,2]
[362540171,1748356238336,-420.0,0.00019178,2]
[362540172,1748356238345,-222.0,0.00019178,2]
[362540173,1748356238355,-430.0,0.00019178,2]
[362540174,1748356238364,-430.0,0.00019178,2]
[362540175,1748356238373,-430.0,0.00019178,2]
[362540176,1748356238382,-413.42105719,0.00019178,2]
[362540177,1748356238391,-168.20739108,0.00019178,2]
[362540178,1748356238400,-430.0,0.00019178,2]
[362540179,1748356238409,-430.0,0.00019178,2]
[362540180,1748356238424,-318.53186603,0.00019178,2]
[362540181,1748356238434,-430.0,0.00019178,2]
[362540182,1748356238443,-430.0,0.00019178,2]
[362540183,1748356238453,-510.0,0.00019178,2]
[362540184,1748356238462,-430.0,0.00019178,2]
[362540185,1748356238471,-345.58150225,0.00019178,2]
[362540186,1748356238480,-430.0,0.00019178,2]
[362540187,1748356238489,-430.0,0.00019178,2]
[362540188,1748356238498,-430.0,0.00019178,2]
[362540189,1748356238508,-486.23,0.00019178,2]
[362540190,1748356238517,-430.0,0.00019178,2]
[362540191,1748356238527,-430.0,0.00019178,2]
[362540192,1748356238536,-230.82570473,0.00019178,2]
[362540193,1748356238548,-199.17429527,0.00019178,2]
[362540194,1748356238557,-430.0,0.00019178,2]
[362540195,1748356238566,-175.61570473,0.00019178,2]
[362540197,1748356238578,-254.38429527,0.00019178,2]
[362540199,1748356238587,-430.0,0.00019178,2]
[362540201,1748356238596,-430.0,0.00019178,2]
[362540203,1748356238606,-430.0,0.00019178,2]
[362540205,1748356238615,-269.52634593,0.00019178,2]
[362540207,1748356238626,-160.47365407,0.00019178,2]
[362540209,1748356238635,-430.0,0.00019178,2]
[362540211,1748356238645,-430.0,0.00019178,2]
[362540213,1748356238654,-375.36744306,0.00019178,2]
[362540215,1748356238667,-54.63255694,0.00019178,2]
[362540217,1748356238676,-430.0,0.00019178,2]
[362540219,1748356238686,-430.0,0.00019178,2]
[362540221,1748356238695,-566.21,0.00019178,2]
[362540223,1748356238705,-430.0,0.00019178,2]
[362540226,1748356238714,-430.0,0.00019178,2]
[362540229,1748356238737,-430.0,0.00019178,2]
[362540231,1748356238747,-430.0,0.00019178,2]
[362540233,1748356238757,-430.0,0.00019178,2]
[362540234,1748356238771,-430.0,0.00019178,2]
[362540236,1748356238790,-430.0,0.00019178,2]
[362540238,1748356238800,-424.64294461,0.00019178,2]
[362540240,1748356238813,-5.35705539,0.00019178,2]
[362540243,1748356238823,-430.0,0.00019178,2]
[362540245,1748356238833,-430.0,0.00019178,2]
[362540247,1748356238843,-430.0,0.00019178,2]
[362540249,1748356238854,-430.0,0.00019178,2]
[362540251,1748356238863,-430.0,0.00019178,2]
[362540253,1748356238874,-490.23,0.00019178,2]
[362540255,1748356238883,-430.0,0.00019178,2]
[362540257,1748356238893,-430.0,0.00019178,2]
[362540259,1748356238903,-430.0,0.00019178,2]
[362540261,1748356238915,-430.0,0.00019178,2]
[362540263,1748356238925,-430.0,0.00019178,2]
[362540265,1748356238935,-430.0,0.00019178,2]
[362540267,1748356238944,-430.0,0.00019178,2]
[362540268,1748356238954,-430.0,0.00019178,2]
[362540269,1748356238964,-430.0,0.00019178,2]
[362540270,1748356238974,-430.0,0.00019178,2]
[362540272,1748356238984,-430.0,0.00019178,2]
[362540274,1748356238994,-430.0,0.00019178,2]
[362540276,1748356239004,-430.0,0.00019178,2]
[362540278,1748356239014,-430.0,0.00019178,2]
[362540280,1748356239023,-430.0,0.00019178,2]
[362540282,1748356239033,-430.0,0.00019178,2]
[362540284,1748356239043,-430.0,0.00019178,2]
[362540286,1748356239052,-432.04928923,0.00019178,2]
[362540288,1748356239062,-430.0,0.00019178,2]
[362540290,1748356239074,-430.0,0.00019178,2]
[362540292,1748356239083,-150.84900088,0.00019178,2]
[362540294,1748356239093,-430.0,0.00019178,2]
[362540296,1748356239103,-430.0,0.00019178,2]
[362540297,1748356239112,-430.0,0.00019178,2]
[362540299,1748356239122,-430.0,0.00019178,2]
[362540301,1748356239131,-430.0,0.00019178,2]
[362540303,1748356239141,-430.0,0.00019178,2]
[362540305,1748356239151,-430.0,0.00019178,2]
[362540307,1748356239165,-430.0,0.00019178,2]
[362540309,1748356239174,-430.0,0.00019178,2]
[362540311,1748356239184,-430.0,0.00019178,2]
[362540313,1748356239193,-430.0,0.00019178,2]
[362540315,1748356239203,-430.0,0.00019178,2]
[362540316,1748356239212,-430.0,0.00019178,2]
[362540318,1748356239222,-430.0,0.00019178,2]
[362540320,1748356239232,-430.0,0.00019178,2]
[362540322,1748356239242,-430.0,0.00019178,2]
[362540324,1748356239257,-430.0,0.00019178,2]
[362540326,1748356239266,-430.0,0.00019178,2]
[362540328,1748356239276,-199.65,0.00019178,2]
[362540330,1748356239286,-430.0,0.00019178,2]
[362540332,1748356239297,-390.0,0.00019178,2]
[362540334,1748356239306,-430.0,0.00019178,2]
[362540336,1748356239315,-430.0,0.00019178,2]
[362540338,1748356239325,-430.0,0.00019178,2]
[362540340,1748356239335,-430.0,0.00019178,2]
[362540342,1748356239345,-430.0,0.00019178,2]
[362540345,1748356239359,-430.0,0.00019178,2]
[362540347,1748356239369,-411.02397448,0.00019178,2]
[362540349,1748356239378,-464.45892059,0.00019178,2]
[362540351,1748356239392,-107.39519908,0.00019178,2]
[362540353,1748356239401,-430.0,0.00019178,2]
[362540356,1748356239412,-274.65943784,0.00019178,2]
[362540358,1748356239424,-155.34056216,0.00019178,2]
[362540360,1748356239434,-430.0,0.00019178,2]
[362540362,1748356239444,-227.72086348,0.00019178,2]
[362540364,1748356239456,-202.27913652,0.00019178,2]
[362540366,1748356239465,-320.4337923,0.00019178,2]
[362540368,1748356239477,-109.5662077,0.00019178,2]
[362540370,1748356239486,-430.0,0.00019178,2]
[362540372,1748356239496,-430.0,0.00019178,2]
[362540374,1748356239506,-430.0,0.00019178,2]
[362540377,1748356239515,-430.0,0.00019178,2]
[362540379,1748356239525,-430.0,0.00019178,2]
[362540381,1748356239535,-430.0,0.00019178,2]
[362540383,1748356239545,-430.0,0.00019178,2]
[362540385,1748356239554,-412.89542418,0.00019178,2]
[362540386,1748356239565,-430.0,0.00019178,2]
[362540387,1748356239575,-430.0,0.00019178,2]
[362540388,1748356239585,-163.12026565,0.00019178,2]
[362540389,1748356239595,-430.0,0.00019178,2]
[362540390,1748356239605,-500.0,0.00019178,2]
[362540392,1748356239615,-500.0,0.00019178,2]
[362540394,1748356239625,-500.0,0.00019178,2]
[362540396,1748356239634,-500.0,0.00019178,2]
[362540398,1748356239644,-500.0,0.00019178,2]
[362540400,1748356239654,-331.18474316,0.00019178,2]
[362540402,1748356239666,-500.0,0.00019178,2]
[362540404,1748356239675,-430.0,0.00019178,2]
[362540406,1748356239684,-430.0,0.00019178,2]
[362540408,1748356239694,-430.0,0.00019178,2]
[362540410,1748356239704,-179.247445,0.00019178,2]
[362540412,1748356239713,-599.27983845,0.00019348,2]
[362540414,1748356239722,-430.0,0.00019452,2]
[362540416,1748356239732,-430.0,0.00019452,2]
[362540418,1748356239742,-255.70796742,0.00019452,2]
[362540420,1748356239752,-430.0,0.00019452,2]
[362540422,1748356239762,-171.23,0.00019452,2]
[362540424,1748356239772,-430.0,0.00019452,2]
[362540426,1748356239782,-430.0,0.00019452,2]
[362540428,1748356239792,-430.0,0.00019452,2]
[362540430,1748356239802,-46.04253259,0.00019452,2]
[362540433,1748356239815,-383.95746741,0.00019452,2]
[362540434,1748356239825,-430.0,0.00019452,2]
[362540437,1748356239835,-430.0,0.00019452,2]
[362540439,1748356239845,-169.66,0.00019452,2]
[362540441,1748356239855,-410.56145627,0.00019452,2]
[362540762,1748356243182,-300.0,0.00019451,2]
[362540764,1748356243195,-19.43854373,0.00019452,2]
[362540766,1748356243204,-430.0,0.00019452,2]
[362540768,1748356243214,-430.0,0.00019452,2]
[362540770,1748356243224,-535.69,0.00019452,2]
[362540772,1748356243234,-430.0,0.00019452,2]
[362540774,1748356243244,-430.0,0.00019452,2]
[362540776,1748356243255,-430.0,0.00019452,2]
[362540779,1748356243265,-599.27983845,0.0001959,2]
[362540782,1748356243275,-430.0,0.00019726,2]
[362540784,1748356243285,-430.0,0.00019726,2]
[362540786,1748356243296,-430.0,0.00019726,2]
[362540788,1748356243305,-430.0,0.00019726,2]
[362540790,1748356243315,-430.0,0.00019726,2]
[362540792,1748356243324,-430.0,0.00019726,2]
[362540794,1748356243335,-430.0,0.00019726,2]
[362540796,1748356243344,-312.2,0.00019726,2]
[362540798,1748356243353,-430.0,0.00019726,2]
[362540800,1748356243363,-430.0,0.00019726,2]
[362540802,1748356243372,-552.96,0.00019726,2]
[362540804,1748356243381,-430.0,0.00019726,2]
[362540806,1748356243390,-156.29277812,0.00019808,2]
[362540809,1748356243401,-212.62946336,0.00019831,2]
[362540811,1748356243410,-842.5625,0.00019831,2]
[362540813,1748356243421,-160.0,0.00019831,2]
[362540815,1748356243430,-160.0,0.00019831,2]
[362540817,1748356243439,-160.0,0.00019831,2]
[362540819,1748356243449,-160.0,0.00019831,2]
[362540821,1748356243458,-229.18805157,0.00019831,2]
[362540823,1748356243467,-599.27983845,0.00019831,2]
[362540825,1748356243477,-1921.44468167,0.00019999,3]
[362540827,1748356243487,-22878.13765755,0.00019999,2]
[362540829,1748356243499,-55050.00000002,0.00019999,2]
[362541120,1748356246550,-430.0,0.00019178,2]
[362541122,1748356246560,-310.0,0.00019178,2]
[362541124,1748356246571,-430.0,0.00019452,2]
[362541126,1748356246581,-430.0,0.00019726,2]
[362541128,1748356246591,-1677.70120226,0.00019999,2]
[362541130,1748356246601,-214.03168901,0.0002,2]
[362541132,1748356246611,-430.0,0.0002,2]
[362541134,1748356246621,-430.0,0.0002,2]
[362541136,1748356246631,-498.23281253,0.0002,2]
[362541139,1748356246641,-430.0,0.0002,2]
[362541141,1748356246652,-509.36,0.0002,2]
[362541143,1748356246662,-164.83333333,0.0002,2]
[362541145,1748356246672,-265.16666667,0.0002,4]
[362541147,1748356246682,-430.0,0.0002,2]
[362541149,1748356246691,-430.0,0.0002,2]
[362541151,1748356246701,-457.43418521,0.0002,2]
[362541153,1748356246711,-430.0,0.0002,2]
[362541155,1748356246720,-599.27983845,0.00020072,2]
[362541157,1748356246730,-420.845388,0.00020187,2]
[362541159,1748356246741,-352.00541982,0.00020273,2]
[362541161,1748356246751,-259.56315482,0.00020273,2]
[362541163,1748356246764,-170.43684518,0.00020273,2]
[362541165,1748356246774,-430.0,0.00020273,2]
[362541167,1748356246784,-201.00610259,0.00020273,2]
[362541169,1748356246795,-200.66,0.00020273,2]
[362541171,1748356246807,-215.92,0.00020273,2]
[362541173,1748356246817,-599.27983845,0.00020314,3]
[362541176,1748356246828,-430.0,0.00020547,2]
[362541178,1748356246838,-430.0,0.00020547,2]
[362541180,1748356246851,-599.27983845,0.00020555,3]
[362541182,1748356246863,-599.27983845,0.00020797,4]
[362541184,1748356246874,-479.32,0.00020821,2]
[362541186,1748356246883,-430.0,0.00020821,2]
[362541188,1748356246893,-460.062,0.00020961,2]
[362541190,1748356246902,-599.27983845,0.00021038,4]
[362541192,1748356246912,-156.29277812,0.00021081,2]
[362541194,1748356246922,-430.0,0.00021095,2]
[362541196,1748356246932,-500.0,0.00021164,2]
[362541198,1748356246942,-430.0,0.00021369,2]
[362541200,1748356246952,-599.27983845,0.00021521,5]
[362541202,1748356246962,-226.83803622,0.00021643,2]
[362541204,1748356246975,-599.27983845,0.00021762,5]
[362541207,1748356246984,-207.4,0.00021832,2]
[362541209,1748356246994,-447.83,0.0002199,10]
[362541211,1748356247003,-1795.72558733,0.00022,2]
[362541213,1748356247013,-8.76625462,0.00022,7]
[362542610,1748356263620,378.760849,0.00013699,2]
[362543614,1748356414143,10007.503245,0.00024657,120]
[362543633,1748356596447,-3204.0,0.000161,2]
[362543637,1748356642354,4117.23797379,0.00016,2]
[362543638,1748356642381,882.76202621,0.00016,2]
[362543639,1748356658130,5000.0,0.00016,2]
[362543640,1748356662173,500.0,0.00024,120]
[362543663,1748357056257,-160.0,0.00016099,2]
[362543664,1748357056279,-5.0,0.000161,2]
[362543675,1748357220521,5000.0,0.00016,2]
[362543676,1748357241107,-146.0,0.000161,2]
[362543677,1748357241130,-211.87049556,0.00016438,2]
[362543680,1748357254139,-6.80908978,0.00016438,2]
[362543681,1748357254164,-300.0,0.00016537,2]
[362543682,1748357254188,-500.0,0.00016538,2]
[362543683,1748357254210,-500.0,0.00016538,2]
[362543684,1748357254232,-366.80462151,0.00016538,2]
[362543685,1748357256165,-133.19537849,0.00016538,2]
[362543686,1748357256187,-439.72126762,0.00016538,2]
[362543687,1748357256211,-500.0,0.00016538,2]
[362543688,1748357256235,-500.0,0.00016538,2]
[362543689,1748357256259,-500.0,0.00016538,2]
[362543690,1748357256281,-500.0,0.00016538,2]
[362543691,1748357256304,-500.0,0.00016538,2]
[362543692,1748357256326,-500.0,0.00016538,2]
[362543693,1748357256347,-429.84627916,0.00016538,2]
[362543694,1748357256374,-500.0,0.00016538,2]
[362543695,1748357256397,-441.04867722,0.00016538,2]
[362543696,1748357256420,-546.18839751,0.00016538,2]
[362543699,1748357307226,380.865077,0.00013699,2]
[362543701,1748357329787,-162.98449013,0.00016438,2]
[362543702,1748357329812,-156.29277812,0.00016438,2]
[362543703,1748357329834,-420.72273175,0.00016537,2]
[362543708,1748357350124,-300.0,0.00016536,2]
[362543709,1748357350147,-79.27726825,0.00016537,2]
[362543710,1748357350169,-500.0,0.00016537,2]
[362543711,1748357350192,-500.0,0.00016537,2]
[362543712,1748357350213,-318.22777475,0.00016537,2]
[362543713,1748357350235,-500.0,0.00016537,2]
[362543714,1748357350256,-500.0,0.00016537,2]
[362543715,1748357350278,-500.0,0.00016537,2]
[362543716,1748357350299,-500.0,0.00016537,2]
[362543717,1748357350323,-163.76024174,0.00016537,2]
[362543718,1748357350346,-500.0,0.00016537,2]
[362543719,1748357350368,-215.67207525,0.00016537,2]
[362543720,1748357350392,-500.0,0.00016537,2]
[362543721,1748357350414,-500.0,0.00016537,2]
[362543722,1748357350438,-1304.49809931,0.00016537,2]
[362543723,1748357350463,-500.0,0.00016537,2]
[362543724,1748357350485,-500.0,0.00016537,2]
[362543725,1748357350509,-1304.49809931,0.00016537,2]
[362543726,1748357350532,-500.0,0.00016537,2]
[362543727,1748357350555,-500.0,0.00016537,2]
[362543728,1748357350581,-1304.49809931,0.00016537,2]
[362543729,1748357350604,-500.0,0.00016537,2]
[362543730,1748357350632,-1304.49809931,0.00016537,2]
[362543731,1748357350660,-500.0,0.00016537,2]
[362543732,1748357350687,-326.35585664,0.00016537,2]
[362543733,1748357350713,-1304.49809931,0.00016537,2]
[362543734,1748357350739,-1304.49809931,0.00016537,2]
[362543735,1748357350763,-500.0,0.00016537,2]
[362543736,1748357350788,-1304.49809931,0.00016537,2]
[362543737,1748357350813,-1304.49809931,0.00016537,2]
[362543738,1748357350837,-1304.49809931,0.00016537,2]
[362543739,1748357350861,-1304.49809931,0.00016537,2]
[362543740,1748357350885,-1304.49809931,0.00016537,2]
[362543741,1748357350909,-1304.49809931,0.00016537,2]
[362543742,1748357350932,-1304.49809931,0.00016537,2]
[362543743,1748357350956,-1304.49809931,0.00016537,2]
[362543744,1748357350979,-1304.49809931,0.00016537,2]
[362543745,1748357351003,-1304.49809931,0.00016537,2]
[362543746,1748357351028,-1304.49809931,0.00016537,2]
[362543747,1748357351051,-1304.49809931,0.00016537,2]
[362543748,1748357351077,-1304.49809931,0.00016537,2]
[362543749,1748357351102,-1304.49809931,0.00016537,2]
[362543750,1748357351127,-1304.49809931,0.00016537,2]
[362543751,1748357351151,-1304.49809931,0.00016537,2]
[362543752,1748357351176,-1304.49809931,0.00016537,2]
[362543753,1748357351201,-1304.49809931,0.00016537,2]
[362543754,1748357351224,-1304.49809931,0.00016537,2]
[362543755,1748357351248,-1304.49809931,0.00016537,2]
[362543756,1748357351273,-1304.49809931,0.00016537,2]
[362543757,1748357351297,-1304.49809931,0.00016537,2]
[362543758,1748357351322,-1304.49809931,0.00016537,2]
[362543759,1748357351347,-1304.49809931,0.00016537,2]
[362543760,1748357351371,-1304.49809931,0.00016537,2]
[362543761,1748357351395,-1304.49809931,0.00016537,2]
[362543762,1748357351419,-1304.49809931,0.00016537,2]
[362543763,1748357351443,-1304.49809931,0.00016537,2]
[362543764,1748357351467,-1304.49809931,0.00016537,2]
[362543765,1748357351492,-1304.49809931,0.00016537,2]
[362543766,1748357351515,-1304.49809931,0.00016537,2]
[362543767,1748357351538,-1304.49809931,0.00016537,2]
[362543768,1748357351563,-1304.49809931,0.00016537,2]
[362543769,1748357351586,-337.5644797,0.00016537,2]
[362543802,1748357432346,-300.0,0.00016536,2]
[362543804,1748357432356,-300.0,0.00016536,2]
[362543806,1748357432366,-79.863226,0.00016536,2]
[362544345,1748357438290,-220.136774,0.00016536,2]
[362544348,1748357438301,-1200.0,0.00016536,2]
[362544349,1748357438312,-300.0,0.00016536,2]
[362544351,1748357438323,-966.93361961,0.00016537,2]
[362544353,1748357438332,-1296.3449862,0.00016537,2]
[362544356,1748357438342,-1296.3449862,0.00016537,2]
[362544358,1748357438351,-1296.3449862,0.00016537,2]
[362544360,1748357438361,-540.03582473,0.00016537,2]
[362544363,1748357438373,-756.30916147,0.00016537,2]
[362544365,1748357438383,-868.43337148,0.00016537,2]
[362544385,1748357439161,-185.95707903,0.00016537,2]
[362544403,1748357440604,-300.0,0.00016536,2]
[362544404,1748357440614,-241.95453569,0.00016537,2]
[362544405,1748357440625,-1296.3449862,0.00016537,2]
[362544406,1748357440634,-1296.3449862,0.00016537,2]
[362544407,1748357440645,-1296.3449862,0.00016537,2]
[362544408,1748357440654,-548.19985221,0.00016537,2]
[362544655,1748357443463,-748.14513399,0.00016537,2]
[362544657,1748357443473,-1296.3449862,0.00016537,2]
[362544659,1748357443483,-1296.3449862,0.00016537,2]
[362544661,1748357443493,-1296.3449862,0.00016537,2]
[362544663,1748357443503,-1296.3449862,0.00016537,2]
[362544665,1748357443513,-1296.3449862,0.00016537,2]
[362544667,1748357443522,-1296.3449862,0.00016537,2]